{"text_format":"1","workbook":"xlsx","n_sheets":4,"sheets":["Information","Expense Report Detail","Employee Table","CC Table"],"not_rendered":{"charts":0,"images":0,"macros":1,"external_links":0,"defined_names":7,"comments":0,"pivot_tables":0},"unopened":[],"bounds":{"document_bytes":16777216,"sheet_cells":100000,"rows_first":2000,"rows_last":500,"rows_between":2000,"halvings":0,"cell_chars":16384,"cell_head_chars":4096},"cells_cut":0,"cells_raw":0,"read":"whole","date_system":"1900"}

{"sheet":"Information","index":0,"n_rows":62,"n_cols":2,"rows_kept":62,"cut":false,"hidden":false,"merged":[]}
["The National Rifle Association of America"]
["Expense Report"]
[]
["General Reminders"]
[]
["1)","For a complete list and explanation of Travel Guidelines please see The Travel"]
[null,"and Business Reimbursement Guidelines effective 10/05/21 (Employee Handbook)."]
[]
["2)","It is your responsibility to know and apply the Travel & Business Guidelines"]
[null,"before you spend Association assets."]
[]
["3)","Financial Services will do its best to process and reimburse employees within 7 to 10"]
[null,"business days following submission of the Expense Report to Financial Services."]
[]
["4)","Should you need assistance please contact Evan Knight at ext. 1659."]
[]
["Using the Expense Report online using Microsoft Excel"]
[]
["1)","This Expense report is split onto two Tabs, which are located at the bottom"]
[null,"of the screen.  You can move between Tabs by clicking your mouse pointer on"]
[null,"Information or Expense Report Detail."]
[]
["Expense Report Detail Directions"]
[]
["1)","Employees, please enter your Employee I.D. Number.  Your Employee I.D."]
[null,"Number is located on your security badge.  Your Name, Division"]
[null,"and Cost Center should appear automatically.  Non-employees please enter"]
[null,"your address in the space provided."]
[]
["2)","Please enter any cash advance received from the NRA. Please enter your"]
[null,"Travel Authorization Form # in cell O8."]
[]
["3)","In the Expense Detail Section enter only \"out of pocket\" expenses."]
[null,"Note: Expenses charged directly to the NRA via American Express, Hertz,"]
[null,"etc. or through MacNair Travel Agency should only be entered in the Direct Charge"]
[null,"Detail section of the Expense Report (See # 7 below)."]
[]
["4)","The Expense Detail Section should include expenses for yourself only.  However,"]
[null,"in certain circumstances (meals), it is not practical to obtain individual receipts."]
[null,"A designated employee may pay for the entire group.  All employees names must"]
[null,"be included on the receipt."]
[]
["5)","If you enter expenses in the Other column (9), please describe the expenses"]
[null," in the space provided (Cell D24) on the Expense Report."]
[]
["6)","The Entertainment / Business Meals Detail should include meals and "]
[null,"entertainment with outside representatives.  Please see the Guidelines"]
[null,"mentioned above for IRS information requirements.  By filling out this section"]
[null,"completely the NRA meets the IRS requirements."]
[]
["7)","To better track and budget for the Total cost of travel please enter the Vendor,"]
[null,"Description and $ amount of any charges billed directly to the NRA.  These vendors"]
[null,"include: MacNair, Hertz, American Express etc."]
[]
["8)","The Financial Services Division has created a Standard Account Distribution for "]
[null,"your expenses.  You may prefer a different Account, Cost Center or Program #."]
[null,"You can use the Standard Distribution by clicking on the Accept button or you"]
[null,"can enter your accounts directly in the Final Account Distribution Section."]
[]
["9)","Please print, sign and date your expense report."]
[null,"Attach your receipts and get your expense report approved."]
[null,"Submit your expense report to the Financial Services Division for payment."]

{"sheet":"Expense Report Detail","index":1,"n_rows":55,"n_cols":16,"rows_kept":55,"cut":false,"hidden":false,"merged":[]}
["The National Rifle Association of America"]
["2024 Expense Report"]
[]
["Employee I.D.:"," ",null,"Name (If not an employee):",null,null,null,null,null,null,"Total Employee Paid Expenses:",null,null,null,{"$f":"O23+O33","v":0}]
["Name:",{"$f":"IF(ISERROR(VLOOKUP(B4,Employees,2,FALSE)),\"\",VLOOKUP(B4,Employees,2,FALSE))","v":""},null,"Address (If not an employee):",null,null,null,null,null,null,"Less Cash Advance:",null,null,null,0]
["Division:",{"$f":"IF(ISERROR(VLOOKUP(B4,Employees,4,FALSE)),\"\",VLOOKUP(B4,Employees,4,FALSE))","v":""},null,"City, State & Zip:",null,null,null,null,null,null,"Amount Due to NRA from Employee:    ",null,null,null,{"$f":"IF(O4-O5<0,O5-O4,0)","v":0}]
["Cost Center #:",{"$f":"IF(ISERROR(VLOOKUP(B4,Employees,3,FALSE)),\"\",VLOOKUP(B4,Employees,3,FALSE))","v":""},null,null,null,null,null,null,null,null,"Amount Due to Employee from NRA:",null,null,null,{"$f":"IF(O4-O5>0,O4-O5,0)","v":0}]
["Purpose:",null,null,"Travel City:",null,null,null,"Travel State:",null,null,"(per Travel Authorization Form)",null,null,"TA Form #:"]
["EXPENSE DETAIL"]
[null,null,null,"(1)","(2)","(3)",null,"(4)","(5)",null,"(6)","(7)","(8)","(9)"]
["Date",null,null,"Plane /","Auto",null,"Personal Auto",null,"Tolls/","Total",null,"Meals"]
["MM/DD-MM/DD","Description",null,"Train","Rental","Taxi","Miles",0.67,"Other","Transport","Lodging","(Self)","Telephone","Other","TOTAL  "]
[null,null,null,null,null,null,null,{"$f":"ROUND(G13*H$12,2)","v":0},null,{"$f":"SUM(D13:F13)+SUM(H13:I13)","v":0},null,null,null,null,{"$f":"SUM(J13:N13)","v":0}]
[null,null,null,null,null,null,null,0,null,0,null,null,null,null,{"$f":"SUM(J14:N14)","v":0}]
[null,null,null,null,null,null,null,0,null,0,null,null,null,null,0]
[null,null,null,null,null,null,null,0,null,0,null,null,null,null,0]
[null,null,null,null,null,null,null,0,null,0,null,null,null,null,0]
[null,null,null,null,null,null,null,0,null,0,null,null,null,null,0]
[null,null,null,null,null,null,null,0,null,{"$f":"SUM(D19:F19)+SUM(H19:I19)","v":0},null,null,null,null,0]
[null,null,null,null,null,null,null,0,null,{"$f":"SUM(D20:F20)+SUM(H20:I20)","v":0},null,null,null,null,0]
[null,null,null,null,null,null,null,0,null,{"$f":"SUM(D21:F21)+SUM(H21:I21)","v":0},null,null,null,null,0]
[null,null,null,null,null,null,null,0,null,{"$f":"SUM(D22:F22)+SUM(H22:I22)","v":0},null,null,null,null,0]
[null,null,"TOTAL  ",{"$f":"SUM(D13:D22)","v":0},{"$f":"SUM(E13:E22)","v":0},{"$f":"SUM(F13:F22)","v":0},null,{"$f":"SUM(H13:H22)","v":0},0,0,0,0,0,0,0]
["Description of Other Charges (Column 9):"]
[]
["Entertainment/Business Meals Detail (a receipt is required for each item of entertainment)"]
["Date","Name of place",null,null,"  Name(s) of Guest(s)",null,null,null,null,"Benefit to NRA",null,null,null,null,"Amount"]
[]
[]
[]
[]
[]
[null,null,null,null,null,null,null,null,null,null,null,null,null,"   Total",{"$f":"SUM(O28:O32)","v":0}]
[]
["DIRECT CHARGE DETAIL",null,null,null,null,null,"Standard Account Distribution",null,null,null,null,"Final Account Distribution"]
[null,null,null,null,null,null,null,"Cost",null,null,null,"Account","Cost","Program"]
["Expenses Charged directly to the NRA:",null,null,null,null,null,"Account","Center","Description","Amount",null,"Number","Center","Number","Amount"]
[null,null,null,null,null,null,5200,{"$f":"$B$7","v":""},"Travel",{"$f":"O23","v":0},null,null,null,null,0]
["Vendor / CC:","Description:",null,"Expense:",null,null,5220,{"$f":"$B$7","v":""},"Bus. Entert.",{"$f":"O33","v":0},null,null,null,null,0]
[null,null,null,null,null,null,null,null,null,null,null,null,null,null,0]
[null,null,null,null,null,null,"You may use the Standard Account Distribution OR",null,null,null,null,null,null,null,0]
[null,null,null,null,null,null,"you may enter alternative accounts in the Final",null,null,null,null,null,null,null,0]
[null,null,null,null,null,null,"Account Distribution area to the right.",null,null,null,null,null,null,null,0]
[null,null,null,null,null,null,"To accept the Standard Distribution, just click on the ",null,null,null,null,null,null,null,0]
[null,null,null,null,null,null,"green Accept Button below.",null,null,null,null,null,null,{"$f":"IF(O45>0,\"Employee Paid Expenses\",\"\")","v":""},{"$f":"SUM(O38:O44)","v":0}]
[null,null,null,null,null,null,"     (Note: If you click the Button and nothing happens"]
[null,null,null,null,null,null,"              your Excel Macros are not enabled. Call x1659)",null,null,null,null,{"$f":"IF(O4>O5,2000,\"\")","v":""},{"$f":"IF(O4>O5,0,\"\")","v":""},{"$f":"IF(O4>O5,\"Act Payable\",\"\")","v":""},{"$f":"IF(O4>O5,-O4+O5,\"\")","v":""},"FSD Only"]
["Total Direct Charges  ",null,null,{"$f":"SUM(D40:D47)","v":0},null,null,null,null,"Total",{"$f":"SUM(J38:J39)","v":0},null,{"$f":"IF(O5=0,\"\",1300)","v":""},{"$f":"IF(O5=0,\"\",0)","v":""},{"$f":"IF(O5=0,\"\",\"Advance\")","v":""},{"$f":"IF(O5=0,\"\",IF(O5=O4,-O4,IF(O5<O4,-O5,-O4)))","v":""},"FSD Only"]
["Total Employee Paid Expenses:",null,null,{"$f":"J48","v":0},null,null,null,null,null,null,null,{"$f":"IF(O5>O4,\"Please code your check to 1300-00000\",\"\")","v":""},null,null,{"$f":"IF(O5>O4,O5-O4,\"\")","v":""}]
[null,null,null,null,null,"Signature of Employee",null,null,null,"Date","Approved By",null,null,null,"Date"]
["Grand Total for all Charges and Expenses",null,null,{"$f":"D49+D48","v":0}]
[null,null,null,null,null,"I certify that all expenses are in accordance with NRA policy and established guidelines and are appropriately documented."]
[null,null,null,null,null,{"$f":"IF(ROUND(J48,5)=ROUND(O45,5),\"\",\"STOP! Total Employee Paid Expenses (incl. Advances) does not equal the Final Account Distribution.\")","v":""}]
[null,null,null,null,null,"Financial Services will do its best to process and reimburse employees within 7 to 10"]
[null,null,null,null,null,"business days following submission of the Expense Report to Financial Services."]

{"sheet":"Employee Table","index":2,"n_rows":782,"n_cols":7,"rows_kept":782,"cut":false,"hidden":true,"merged":[]}
["ID #","Name","Cost Center","Division",null,null,"Updated: 09/07/23"]
[1," ",10100,{"$f":"VLOOKUP(LEFT(C2,5)*1,Division,4,FALSE)","v":"Office Of The President"}]
[363,"Lapierre, Wayne R.",10200,"Executive Vice President"]
[448,"Murphy, Phyllis L.",43110,"Competitive Shooting"]
[620,"Brock-Smith, Cheryl V.",30530,"Administrative Svcs"]
[987,"Godstrey, Brenda",30305,"Information Services"]
[1071,"Kramer, Michele A.",43110,"Competitive Shooting"]
[1139,"Sabatier, Michael L.",10300,"Office Of The Treasurer"]
[1167,"Whitley, Cynthia M.",30500,"Administrative Svcs"]
[1218,"Ballew, Michael",0,"Office of the Treasurer"]
[1261,"Fischer, Andra V.",10200,"Executive Vice President"]
[1304,"Frazer, James B.",30301,"Information Services"]
[1404,"Sookia, Sandra P.",30530,"Administrative Svcs"]
[1440,"Tahmassebi, Stefan B.",10210,"General Counsel"]
[1495,"Schreier, E P.",40685,"NFM & Gun Collecting"]
[1497,"Landfried, Terrence I.",10700,"Inst For Legislative Action"]
[1523,"Brooks, Gloria V.",40830,"Education & Training"]
[1621,"Keefe, Mark A.",20100,"Publications"]
[1683,"Worley, Edward E.",61100,"Advancement"]
[1771,"Trible, William E.",40685,"NFM & Gun Collecting"]
[1809,"Littles, Rickey",80624,"Membership"]
[1811,"Poole, Jeffrey L.",40200,"NRA Shows & Exhibits"]
[1940,"Frazer, John C.",10400,"Office Of The Secretary"]
[1949,"Contreras, Guillermo A.",30530,"Administrative Svcs"]
[1960,"Patterson, Jenny L.",80624,"Membership"]
[1971,"Mica, Tara R.",10700,"Inst For Legislative Action"]
[2053,"Kessler, Evelyn Q.",20100,"Publications"]
[2096,"Kozuch, Randy J.",10700,"Inst For Legislative Action"]
[2107,"George, Lisa M.",10310,"Purchasing"]
[2156,"Robinson, Derek S.",80600,"Membership"]
[2180,"Roulette, Anthony F.",10700,"Inst For Legislative Action"]
[2258,"Hilton, John H.",61631,"Advancement"]
[2275,"Sanford, Michael J.",20100,"Publications"]
[2287,"Purtell, James F.",30300,"Information Services"]
[2295,"Amaya, Rudis S.",40125,"General Operations"]
[2308,"Brown, Samantha L.",20400,"Publications"]
[2331,"Soto, Shawne E.",30200,"Human Resources"]
[2339,"Manthos, Melinda L.",80600,"Membership"]
[2346,"Quandahl, Larry J.",20100,"Publications"]
[2365,"Mehall, Karen",20900,"Publications"]
[2398,"Daniels, Stephanie S.",10400,"Office Of The Secretary"]
[2439,"Hallow, Mildred",10200,"Executive Vice President"]
[2447,"Bailey, John",40200,"NRA Shows & Exhibits"]
[2457,"Blaz, Michael G.",10210,"General Counsel"]
[2464,"Farmer, Naomi A.",10700,"Inst For Legislative Action"]
[2477,"Benedict, Daniel",30306,"Information Services"]
[2514,"Wade, Matthew",10300,"Office Of The Treasurer"]
[2551,"Lavery, Donald G.",30510,"Administrative Svcs"]
[2552,"Martinez, Cynthia A.",0,"Office of the Treasurer"]
[2553,"Polen, Jack E.",0,"Office of the Treasurer"]
[2554,"Galanick, Joseph",30305,"Information Services"]
[2572,"Labrozzi, David",20120,"Publications"]
[2621,"McElrath, Daniel T.",20830,"Publications"]
[2629,"Majors, Christina M.",10300,"Office Of The Treasurer"]
[2634,"Weaver, Mark S.",20120,"Publications"]
[2651,"Harris, Karen G.",20500,"Publications"]
[2674,"Boyd, Robert",20830,"Publications"]
[2683,"Dent, Gary E.",30305,"Information Services"]
[2691,"Hinchliffe, David W.",80624,"Membership"]
[2705,"Sheetz, Brian C.",20200,"Publications"]
[2713,"Galythly, Skipp C.",10210,"General Counsel"]
[2715,"Tedrick, Thomas R.",10300,"Office Of The Treasurer"]
[2720,"Olmsted, J S.",20300,"Publications"]
[2722,"Supernaugh, Lisa L.",40100,"General Operations"]
[2727,"Wright, Kevin A.",30900,"Administrative Svcs"]
[2742,"Ives, Thomas K.",30900,"Administrative Svcs"]
[2783,"Ulik, Thomas A.",60280,"Field Operations"]
[2838,"Hoyer, Glen A.",40900,"Law Enforcement"]
[2851,"Fricke, Mark A.",40930,{"$f":"VLOOKUP(LEFT(C69,5)*1,Division,4,FALSE)","v":"Law Enforcement"}]
[2863,"St Onge, Angela L.",50100,"Financial Services"]
[2865,"Miller, David A.",40930,"Law Enforcement"]
[2870,"Rowling, Sonya B.",10300,"Office Of The Treasurer"]
[2880,"Briemann, Jennifer L.",10700,{"$f":"VLOOKUP(LEFT(C73,5)*1,Division,4,FALSE)","v":"Inst For Legislative Action"}]
[2914,"Coder, Milissa E.",61200,"Advancement"]
[2924,"Fleming, Matthew S.",40730,"Rec Programs & Ranges"]
[2929,"Shine, Maryellen W.",40930,"Law Enforcement"]
[2945,"Campbell, William S.",40930,"Law Enforcement"]
[2957,"Conte, Christopher A.",10210,"General Counsel"]
[2963,"Murphy, Lathan D.",61600,"Advancement"]
[2964,"Jenkins, Robert W.",30302,"Information Services"]
[2972,"Wolfe, Terri A.",20100,"Publications"]
[2976,"OConnell, Deborah L.",20409,"Publications"]
[2981,"Arulanandam, Andrew A.",10220,"Executive Vice President"]
[2993,"Claman, John T.",20120,"Publications"]
[3006,"Galvan, Jacqueline K.",10700,"Inst For Legislative Action"]
[3013,"Sisson, Anne E.",10300,"Office Of The Treasurer"]
[3029,"Howard, John K.",40800,"Education & Training"]
[3060,"Enck, Kory R.",60204,"Field Operations"]
[3066,"Dove, James V.",30302,"Information Services"]
[3067,"Smith, Ann Y.",20600,"Publications"]
[3072,"Eckberg, Erik D.",10700,"Inst For Legislative Action"]
[3095,"Bower, Matthew H.",10210,"General Counsel"]
[3100,"Kuntz, Michelle E.",20400,"Publications"]
[3111,"Simon, Brett P.",40830,"Education & Training"]
[3118,"Erstling, Michael J.",50100,"Financial Services"]
[3154,"Zimmer, Donald R.",30305,"Information Services"]
[3161,"Lipp, Marcus M.",40920,"Law Enforcement"]
[3165,"Crismore, Joseph R.",60228,"Field Operations"]
[3169,"Merrill, Robert D.",61632,"Advancement"]
[3258,"Wilson, Wayne G.",40210,"NRA Shows & Exhibits"]
[3280,"Weber, David J.",40930,"Law Enforcement"]
[3287,"Rickwalder, Thomas C.",20500,"Publications"]
[3303,"Kirchgessner, David L.",30900,"Administrative Svcs"]
[3306,"Capitano, Ann M.",10310,"Purchasing"]
[3413,"Cole, Tim J.",40930,"Law Enforcement"]
[3417,"Handlon, James C.",20400,"Publications"]
[3437,"Johnson, Constance S.",10300,"Office Of The Treasurer"]
[3441,"Phelps, Stephanie M.",0,"Office of the Treasurer"]
[3449,"Gervase, Sarah A.",10210,"General Counsel"]
[3462,"Miniter, Frank C.",20700,"Publications"]
[3502,"Valdez, Adrian L.",0,"Office of the Treasurer"]
[3526,"Beehner, John A.",40930,"Law Enforcement"]
[3533,"Mulford, James R.",30306,"Information Services"]
[3534,"Kennedy, Michael O.",30306,"Information Services"]
[3535,"Sanders, Douglas W.",30306,"Information Services"]
[3536,"Daniel, Donald",30306,"Information Services"]
[3554,"Webb, Danny H.",30900,"Administrative Svcs"]
[3555,"Martin, Timothy A.",80624,"Membership"]
[3561,"Hopkins, Derrick L.",40930,"Law Enforcement"]
[3562,"Crouch, Linda S.",30200,"Human Resources"]
[3568,"Bush, Elizabeth M.",40700,"Rec Programs & Ranges"]
[3577,"Bayes, Kenneth S.",80600,"Membership"]
[3578,"Ouimet, Jason M.",10700,"Inst For Legislative Action"]
[3580,"Berthelsen, Brooke A.",61423,"Advancement"]
[3585,"Dulco, Steve M.",20500,"Publications"]
[3586,"Stoner, Kristin J.",61100,"Advancement"]
[3589,"Lafever, Wendy H.",20810,"Publications"]
[3608,"Peters, Mark S.",40930,"Law Enforcement"]
[3623,"Padilla, Maria Portia C.",50100,"Financial Services"]
[3625,"Mccool, Charles C.",10700,"Inst For Legislative Action"]
[3633,"Johns, Michael G.",30900,"Administrative Svcs"]
[3658,"Oliveri, Debra C.",20400,"Publications"]
[3671,"Lipp, Eric M.",40130,"Rec Programs & Ranges"]
[3678,"Loo, Andre",40210,"NRA Shows & Exhibits"]
[3694,"Locke, Catherine M.",30530,"Administrative Svcs"]
[3695,"Wood, Graham H.",72200,{"$f":"VLOOKUP(LEFT(C136,5)*1,Division,4,FALSE)","v":"Sales & Affinity"}]
[3701,"Kruger, Bradley J.",60290,"Field Operations"]
[3702,"Ballew, Marion B.",60500,"Field Operations"]
[3710,"Anglewicz, Suzanne N.",10700,"Inst For Legislative Action"]
[3712,"Goens, Darin D.",10700,"Inst For Legislative Action"]
[3719,"Webb, Michael C.",60285,"Field Operations"]
[3727,"Nguyen, Kimberly A.",61400,"Advancement"]
[3742,"Stacks, Sunee M.",10300,"Office Of The Treasurer"]
[3749,"Cosgriff, Lawrence E.",30900,"Administrative Svcs"]
[3758,"Tsoucalas, Nicholas G.",10300,"Office Of The Treasurer"]
[3791,"Fish, Becky J.",0,"Office of the Treasurer"]
[3795,"Engeset, Sarah M.",60100,"Field Operations"]
[3813,"Caine, Edward A.",40930,"Law Enforcement"]
[3815,"Gajramsingh, Lenora",50100,"Financial Services"]
[3823,"Davis, Katherine C.",61700,"Advancement"]
[3824,"Wilhelm, Daniel E.",60235,"Field Operations"]
[3833,"Lewis, Patricia E.",40830,"Education & Training"]
[3835,"Reid, Daniel S.",10700,"Inst For Legislative Action"]
[3837,"Fedrigo, Patricia M.",30300,"Information Services"]
[3839,"Herman, Allan D.",60251,"Field Operations"]
[3841,"Parker, John P.",20820,"Publications"]
[3862,"Wagner, Jeffrey L.",30510,"Administrative Svcs"]
[3866,"Kulivan, Karen L.",10300,"Office Of The Treasurer"]
[3872,"Gray, Daniel R.",40930,"Law Enforcement"]
[3921,"Evans, Laura E.",61100,"Advancement"]
[3937,"Wigler, Colin S.",10700,"Inst For Legislative Action"]
[3942,"Whitescarver, Eric M.",30510,"Administrative Svcs"]
[3944,"Crew, Kyle M.",10300,"Office Of The Treasurer"]
[3955,"Wilson, Steve R.",60246,"Field Operations"]
[3963,"Commerford, John S.",10700,"Inst For Legislative Action"]
[3980,"Sprague, Ruthann M.",10300,"Office Of The Treasurer"]
[3981,"Flowers, Ronald A.",40930,"Law Enforcement"]
[3994,"Alexander, Recardo M.",30900,"Administrative Svcs"]
[3999,"Olsen, Claudia G.",40810,"Education & Training"]
[4005,"Pond, George F.",61627,"Advancement"]
[4008,"Stough, Jeffrey D.",40930,"Law Enforcement"]
[4009,"Schenck, Darrel J.",40930,"Law Enforcement"]
[4013,"Lose, Robert T.",40930,"Law Enforcement"]
[4016,"Sharpe, Matthew G.",30900,"Administrative Svcs"]
[4019,"Holmes, Michael K.",80600,"Membership"]
[4029,"Olsen, Samantha J.",40830,"Education & Training"]
[4053,"Draper, Jonathan P.",20300,"Publications"]
[4065,"Friedman, Edward J.",20830,"Publications"]
[4090,"Van Flein, Apryl Marie",61100,{"$f":"VLOOKUP(LEFT(C179,5)*1,Division,4,FALSE)","v":"Advancement"}]
[4108,"Hoover, Bryan M.",60100,"Field Operations"]
[4114,"Helms, John L.",40930,"Law Enforcement"]
[4117,"Perez, Christie C.",30200,"Human Resources"]
[4122,"Arenas, Filomeno J.",61300,"Advancement"]
[4126,"Purtell, Kathleen M.",60500,"Field Operations"]
[4132,"Ryan, Steven M.",40930,"Law Enforcement"]
[4134,"Wells, David E.",60275,"Field Operations"]
[4135,"Dalseide, Lars E.",10220,"Executive Vice President"]
[4142,"Zealand, Christopher",10700,"Inst For Legislative Action"]
[4149,"Schroeder, Cathy",40930,"Law Enforcement"]
[4150,"Mazzeo, John J.",40930,"Law Enforcement"]
[4168,"Hearns, Sean T.",30900,"Administrative Svcs"]
[4169,"Shahidi, Vanessa B.",10200,"Executive Vice President"]
[4210,"Schropp, Tyler T.",61100,"Advancement"]
[4213,"Alwes, Donald R.",40930,"Law Enforcement"]
[4238,"Smith, Richard A.",30900,"Administrative Svcs"]
[4247,"Vreeland, Steven A.",60233,"Field Operations"]
[4252,"Savani, Joshua R.",10700,"Inst For Legislative Action"]
[4258,"Keathley, Jerrell G.",40685,"NFM & Gun Collecting"]
[4260,"Chao, Jane",30306,"Information Services"]
[4262,"Johnson, Michael E.",40930,"Law Enforcement"]
[4265,"Lynch, Timothy M.",40930,"Law Enforcement"]
[4269,"Radielovic, Marko J.",61424,{"$f":"VLOOKUP(LEFT(C202,5)*1,Division,4,FALSE)","v":"Advancement"}]
[4282,"Crowley, Katherine M.",10210,"General Counsel"]
[4283,"Gallegos, David R.",0,{"$f":"VLOOKUP(LEFT(C204,5)*1,Division,4,FALSE)","v":"Office of the Treasurer"}]
[4287,"Benton, Norman C.",30510,"Administrative Svcs"]
[4303,"Conte, David E.",10700,"Inst For Legislative Action"]
[4320,"Hawley, Mary B.",30900,"Administrative Svcs"]
[4338,"Denfeld, Maureen A.",20200,"Publications"]
[4339,"Knight, Thomas A.",60243,"Field Operations"]
[4350,"Baranowski, James M.",10700,"Inst For Legislative Action"]
[4358,"Schraer, Mark A.",40930,"Law Enforcement"]
[4359,"Foley, Elizabeth A.",60244,"Field Operations"]
[4381,"Anderson, Hoyt L.",0,"Office of the Treasurer"]
[4386,"Stephens, Gregory D.",60238,"Field Operations"]
[4392,"Olsen, Christopher J.",20200,"Publications"]
[4394,"Wojtowicz, Ashley A.",0,"Office of the Treasurer"]
[4407,"Bussell, Allison L.",40100,"General Operations"]
[4421,"Crews, Debra M.",30900,"Administrative Svcs"]
[4422,"Kipke, Susannah W.",61631,"Advancement"]
[4426,"Peugeot, Marc A.",60249,"Field Operations"]
[4432,"Amitay, Martha K.",30900,"Administrative Svcs"]
[4437,"Fountain, Peter D.",20140,"Publications"]
[4439,"Weedon, Willard J.",30900,"Administrative Svcs"]
[4447,"Wales, Leonard P.",30900,"Administrative Svcs"]
[4448,"Johnson, Michael L.",30900,"Administrative Svcs"]
[4458,"Kim, Connie S.",80680,"Membership"]
[4463,"Junion, Travis L.",61629,"Advancement"]
[4479,"Jean, Michael T.",10700,"Inst For Legislative Action"]
[4521,"Merrill, David T.",80690,"Membership"]
[4524,"Furr, Mary W.",43600,"Competitive Shooting"]
[4528,"Perrine, Nicholas J.",40100,"General Operations"]
[4539,"Sandoval, Linda K.",0,"Office of the Treasurer"]
[4544,"Toennessen, Joshua T.",60214,"Field Operations"]
[4550,"Higgs, Donald L.",60270,"Field Operations"]
[4554,"Martin, Jeremy A.",40210,"NRA Shows & Exhibits"]
[4555,"Bowen, Chad R.",60216,"Field Operations"]
[4558,"Eldridge, Patrick B.",60248,"Field Operations"]
[4561,"Powell, Thomas E.",40930,"Law Enforcement"]
[4564,"Maccormack, Forrest S.",20140,"Publications"]
[4566,"Doden, Cheryl A.",20400,"Publications"]
[4567,"Fish, Jay D.",0,"Office of the Treasurer"]
[4570,"Plum, Kara L.",72200,"Sales & Affinity"]
[4581,"Chiasson, Brook B.",20700,"Publications"]
[4583,"Brown, Reginald",30302,"Information Services"]
[4584,"Triplett, Eric C.",10205,"Executive Vice President"]
[4585,"Haefs, Karen M.",20120,"Publications"]
[4590,"Thomas, Michael J.",10205,"Executive Vice President"]
[4591,"Dougherty, Lee",60500,"Field Operations"]
[4596,"Lozic Radielovic, Katica",20300,"Publications"]
[4597,"Anderson, Carlin T.",10700,"Inst For Legislative Action"]
[4598,"Sheehan, Richard V.",40830,"Education & Training"]
[4599,"Dewitt, Christopher-ian M.",61100,"Advancement"]
[4602,"Clarke, Vicki L.",61422,"Advancement"]
[4604,"Agyenim, Joseph B.",10205,"Executive Vice President"]
[4607,"Buck, Scott W.",40220,"NRA Shows & Exhibits"]
[4618,"Dreier, Bradley J.",60230,"Field Operations"]
[4625,"Mandryck, Megan A.",61100,"Advancement"]
[4626,"Higgins, Alexandria R.",10700,"Inst For Legislative Action"]
[4636,"Custis, Jay H.",50100,"Financial Services"]
[4644,"Tergeson, Erica",10700,"Inst For Legislative Action"]
[4649,"Calbi, David M.",30900,"Administrative Svcs"]
[4664,"Le Chance, Christine",50100,"Financial Services"]
[4675,"Littlefield, Paul D.",80680,"Membership"]
[4676,"Stadnyk, Sophia M.",10700,"Inst For Legislative Action"]
[4679,"Grazio, Hector J.",20830,"Publications"]
[4682,"Calabrese, Brian P.",10700,"Inst For Legislative Action"]
[4688,"Moss, Patricia A.",10300,"Office Of The Treasurer"]
[4695,"Long, Jody T.",40930,"Law Enforcement"]
[4696,"Arbanas, Amanda J.",80680,"Membership"]
[4698,"Jones, Scott D.",10700,{"$f":"VLOOKUP(LEFT(C270,5)*1,Division,4,FALSE)","v":"Inst For Legislative Action"}]
[4703,"Sabatini, Erin R.",40685,"NFM & Gun Collecting"]
[4709,"Hamlin, Douglas J.",20100,"Publications"]
[4712,"Reynolds, Conrad C.",30900,"Administrative Svcs"]
[4713,"Kelner, David F.",0,"Office of the Treasurer"]
[4718,"Gulick, Keith G.",0,"Office of the Treasurer"]
[4719,"Armatys, Bryan L.",0,"Office of the Treasurer"]
[4726,"Sabharwal, Aditya",30305,"Information Services"]
[4730,"Flemion, Marshall J.",20401,"Publications"]
[4737,"Olson, Neil C.",20406,"Publications"]
[4738,"Morrison, Robert A.",20402,"Publications"]
[4739,"Carr, Rachel M.",20100,"Publications"]
[4740,"Pedersen, Michael R.",20500,"Publications"]
[4759,"Trout, Rachelle R.",20405,"Publications"]
[4760,"Oneill, James P.",20408,"Publications"]
[4774,"Yates, Stanley D.",20404,"Publications"]
[4775,"Hamill, Timothy M.",20407,"Publications"]
[4786,"Carreras, Santiago",30302,"Information Services"]
[4788,"Espinoza, Ronny C.",30302,"Information Services"]
[4797,"Ragosta, Christian J.",10700,"Inst For Legislative Action"]
[4801,"Locher, Andrew K.",40930,"Law Enforcement"]
[4802,"Helmer, David R.",80680,"Membership"]
[4805,"Chau, Lisa M.",30900,"Administrative Svcs"]
[4810,"Miller, Thomas G.",40930,"Law Enforcement"]
[4817,"Linder, Eric M.",60221,"Field Operations"]
[4819,"Young, Kelly M.",20200,"Publications"]
[4823,"Sullivan, Shannon O.",10310,"Purchasing"]
[4827,"Mossburg, William P.",40930,"Law Enforcement"]
[4829,"Greeson, Gregory S.",0,"Office of the Treasurer"]
[4835,"Marsh, Jane F.",10400,"Office Of The Secretary"]
[4836,"Whaley, Eric L.",0,"Office of the Treasurer"]
[4838,"Getreu, Nancy A.",61200,"Advancement"]
[4840,"Bratsch, Kimber C.",60500,"Field Operations"]
[4844,"Churchbourne, Peter T.",61100,"Advancement"]
[4847,"Lan, Kenneth T.",10700,"Inst For Legislative Action"]
[4848,"Thompson, Jack S.",10700,"Inst For Legislative Action"]
[4849,"Kroeger, David F.",10700,"Inst For Legislative Action"]
[4850,"Phillips, Keith A.",51100,"Tax Compliance"]
[4851,"Holden, Shawn C.",10205,"Executive Vice President"]
[4857,"Young, Sarah F.",10300,"Office Of The Treasurer"]
[4862,"Petefish, Dennis W.",40922,"Law Enforcement"]
[4863,"Wright, Amy H.",10220,"Executive Vice President"]
[4866,"Logar, Joseph E.",40130,"Rec Programs & Ranges"]
[4869,"Digangi, Anthony A.",30900,"Administrative Svcs"]
[4871,"Cereghino, Michael",30900,"Administrative Svcs"]
[4878,"Aldrich, Catherine L.",10700,"Inst For Legislative Action"]
[4879,"Goldstein, Brian J.",10300,"Office Of The Treasurer"]
[4881,"Ortiz, Katherine E.",0,"Office of the Treasurer"]
[4904,"Grable, Todd A.",80600,"Membership"]
[4907,"Inskeep, Emily A.",10300,"Office Of The Treasurer"]
[4916,"Miller, Virginia A.",10400,"Office Of The Secretary"]
[4919,"Shuster, Danielle C.",40210,"NRA Shows & Exhibits"]
[4923,"Staples, James B.",10205,"Executive Vice President"]
[4924,"Kopacki, Christopher G.",10700,"Inst For Legislative Action"]
[4927,"Holland, James P.",10700,"Inst For Legislative Action"]
[4930,"Stewart, David G.",40930,"Law Enforcement"]
[4932,"Sullivan, Frances K.",61200,"Advancement"]
[4944,"Reed, Richard D.",60500,"Field Operations"]
[4957,"Couture-Lovelady, Travis L.",10700,"Inst For Legislative Action"]
[4961,"Sterner, Colleen M.",61100,"Advancement"]
[4969,"Rahman, Arifur",50100,"Financial Services"]
[4980,"Lyles, Ernest W.",40685,"NFM & Gun Collecting"]
[4999,"Custer, Jon M.",40930,"Law Enforcement"]
[5006,"Halbrook, David A.",40700,"Rec Programs & Ranges"]
[5017,"Bier, Rose M.",20300,"Publications"]
[5022,"Allen, Megan E.",61100,"Advancement"]
[5041,"Peel, Timothy C.",40730,"Rec Programs & Ranges"]
[5055,"Bernal, Marissa L.",0,"Office of the Treasurer"]
[5072,"Cate, Devin S.",80624,"Membership"]
[5073,"Horton, Stacy L.",80624,{"$f":"VLOOKUP(LEFT(C339,5)*1,Division,4,FALSE)","v":"Membership"}]
[5076,"Martin, Nadia J.",0,"Office of the Treasurer"]
[5092,"Sanders, Amanda M.",10700,"Inst For Legislative Action"]
[5109,"Brune, Evan J.",20200,"Publications"]
[5111,"Hatch, Hadan W.",10700,"Inst For Legislative Action"]
[5113,"Stebbings, Joanna S.",10205,"Executive Vice President"]
[5116,"Vutukuri, Subbarao",30305,"Information Services"]
[5120,"Kosters, Joshua F.",61200,"Advancement"]
[5122,"Coy, Raymond N.",30301,"Information Services"]
[5124,"Thomm, Arthur W.",10700,"Inst For Legislative Action"]
[5125,"Storey, Garland B.",60208,"Field Operations"]
[5128,"Weaver, Thomas",30900,"Administrative Svcs"]
[5131,"Steinberger, John M.",0,"Office of the Treasurer"]
[5132,"Cuddy, Matthew",10700,"Inst For Legislative Action"]
[5136,"Pridemore, Brooke N.",10300,"Office Of The Treasurer"]
[5139,"Power, John W.",30900,"Administrative Svcs"]
[5141,"Debergalis, Joseph P.",40100,"General Operations"]
[5147,"Santos, Shelley J.",0,"Office of the Treasurer"]
[5150,"Rogers, Ryan K.",40125,"General Operations"]
[5156,"Merkle, Eric S.",40125,"General Operations"]
[5158,"Laney, Alan K.",40125,"General Operations"]
[5159,"Aplan, Arthur J.",40125,"General Operations"]
[5164,"McCulloch, Cole L.",43100,"Competitive Shooting"]
[5169,"Wilson, Adam C.",20400,"Publications"]
[5179,"Carrasco, Gisela",0,"Office of the Treasurer"]
[5181,"Chavira Alvidrez, Yasmine A.",0,"Office of the Treasurer"]
[5183,"Proksa, John T.",61700,"Advancement"]
[5200,"Guilliams, Michael W.",60227,"Field Operations"]
[5203,"Sutherland, Theresa",43100,"Competitive Shooting"]
[5207,"Fleetwood, Pamela S.",43100,"Competitive Shooting"]
[5208,"Speed, Gordon M.",10700,"Inst For Legislative Action"]
[5210,"Szramoski, Alexander L.",40210,"NRA Shows & Exhibits"]
[5219,"McDermott, Stephen P.",10300,"Office Of The Treasurer"]
[5220,"Kunec, Christian B.",30302,"Information Services"]
[5221,"Schafle, Matthew J.",10700,"Inst For Legislative Action"]
[5222,"Gosch, Brian G.",10700,"Inst For Legislative Action"]
[5224,"Zmich, Janette M.",0,"Office of the Treasurer"]
[5229,"Decker, Richard C.",60203,"Field Operations"]
[5233,"Farmer, Aaron B.",43100,"Competitive Shooting"]
[5235,"Winters, Aaron J.",30305,"Information Services"]
[5238,"Weber, John E.",10700,"Inst For Legislative Action"]
[5245,"Besancenez, Timothy L.",60219,"Field Operations"]
[5249,"Boer, Sheila D.",60250,"Field Operations"]
[5252,"Herman III, Louis D.",20300,"Publications"]
[5253,"Ward, James T.",60226,"Field Operations"]
[5255,"McGowan, Bruce E.",60202,"Field Operations"]
[5256,"Duff, Logan D.",60229,"Field Operations"]
[5263,"Hameed, Rawaa R.",10205,"Executive Vice President"]
[5265,"Curtis, Kelvin D.",10700,"Inst For Legislative Action"]
[5269,"Tribble Esq., Paul R.",40125,"General Operations"]
[5270,"Alexander, Larry E.",40125,"General Operations"]
[5272,"Foster, Abigail M.",61200,"Advancement"]
[5274,"McLaughlin, William M.",10220,"Executive Vice President"]
[5275,"Sirignano, Darrell L.",40125,"General Operations"]
[5278,"Re, Ashley M.",61700,"Advancement"]
[5279,"Sprick, Martin C.",40830,"Education & Training"]
[5288,"Adams, Connor T.",0,"Office of the Treasurer"]
[5289,"Lies, Jerrod G.",0,"Office of the Treasurer"]
[5291,"Karns III, Ray L.",80624,"Membership"]
[5294,"Vigil, Mary F.",0,"Office of the Treasurer"]
[5297,"Vara, Christian",40830,"Education & Training"]
[5303,"Fanelli, Rhonda L.",0,"Office of the Treasurer"]
[5304,"Ingram, Ashley A.",10700,"Inst For Legislative Action"]
[5307,"Vance, Daniel M.",10205,"Executive Vice President"]
[5309,"Sutherland, Brad S.",43100,"Competitive Shooting"]
[5314,"Stockhorst, Austin",60500,"Field Operations"]
[5315,"Glidden, Nathaniel W.",43100,"Competitive Shooting"]
[5319,"Knight, Evan M.",50100,"Financial Services"]
[5320,"Brooks, Jeffrey C.",30900,"Administrative Svcs"]
[5323,"Tompkins, Middleton W.",43100,{"$f":"VLOOKUP(LEFT(C408,5)*1,Division,4,FALSE)","v":"Competitive Shooting"}]
[5324,"Liebetrau, Karin A.",43100,"Competitive Shooting"]
[5325,"Jackson II, Andrew",43100,"Competitive Shooting"]
[5328,"Owens, Robert G.",10300,"Office Of The Treasurer"]
[5331,"Hawkins, Rose",43100,"Competitive Shooting"]
[5336,"Swackhamer, Michael L.",60207,"Field Operations"]
[5355,"Healy, Erin C.",20900,"Publications"]
[5356,"Bilbo, Bernard J.",40125,"General Operations"]
[5360,"Chau, Chan S.",30900,"Administrative Svcs"]
[5363,"Robison, Thomas A.",40220,"NRA Shows & Exhibits"]
[5367,"Gallegos, Kimberly A.",0,"Office of the Treasurer"]
[5368,"Warren, David A.",10300,"Office Of The Treasurer"]
[5375,"Tekavec, Robert J.",60205,"Field Operations"]
[5376,"LePage, Lauren E.",10700,"Inst For Legislative Action"]
[5380,"Hutchcraft, Susan D.",40125,"General Operations"]
[5381,"Sheering, Bryan K.",10300,"Office Of The Treasurer"]
[5384,"McGee, Lindsay S.",30200,"Human Resources"]
[5385,"Kolencik, Cynthia J.",40900,"Law Enforcement"]
[5392,"Oldham, Deshawnn A.",0,"Office of the Treasurer"]
[5393,"Swoboda, Caitlin B.",80624,"Membership"]
[5416,"Pierce, Tristan L.",0,"Office of the Treasurer"]
[5419,"Chidester, Scott A.",30305,"Information Services"]
[5421,"Notargiacomo, Bradley J.",40710,"Rec Programs & Ranges"]
[5422,"Collins, Katherine A.",40912,"Law Enforcement"]
[5423,"Kupcha, Stephen",61300,"Advancement"]
[5430,"Bennett, Brandy A.",40220,"NRA Shows & Exhibits"]
[5431,"Ruth, Jason F.",30900,"Administrative Svcs"]
[5435,"Salazar, Zoey S.",0,"Office of the Treasurer"]
[5442,"Cantrell, Nathan D.",60209,"Field Operations"]
[5444,"Dixon, Melissa M.",20700,"Publications"]
[5445,"OLeary, Garrett T.",20700,"Publications"]
[5448,"Fox, Diana M.",10700,"Inst For Legislative Action"]
[5452,"Callender, Wade J.",10700,"Inst For Legislative Action"]
[5453,"Herriman, Matthew S.",10700,"Inst For Legislative Action"]
[5454,"Campbell Jr., Chester R.",30305,"Information Services"]
[5455,"Franks, Karson G.",30900,"Administrative Svcs"]
[5458,"Spofford, Grant S.",30305,"Information Services"]
[5459,"Large, Alexander J.",10700,"Inst For Legislative Action"]
[5460,"Jones, Barry M.",20120,"Publications"]
[5461,"Raymer, Jennifer K.",10300,"Office Of The Treasurer"]
[5462,"Kim, Joohee",30305,"Information Services"]
[5463,"Kurash, Andrew P.",40200,"NRA Shows & Exhibits"]
[5464,"Kelly, Troy T.",20500,"Publications"]
[5465,"Bateman, Rebecca R.",40200,"NRA Shows & Exhibits"]
[5469,"Spiker, Daniel J.",10700,"Inst For Legislative Action"]
[5471,"Foster, Hayden A.",20200,"Publications"]
[5473,"Clukey, Ashley D.",40210,"NRA Shows & Exhibits"]
[5474,"Cote, Anthony J.",10700,"Inst For Legislative Action"]
[5475,"Pek, Soliny",50100,"Financial Services"]
[5476,"Whitlow, Hannah E.",10700,"Inst For Legislative Action"]
[5479,"Huggins, Kirk A.",40930,"Law Enforcement"]
[5481,"Blaschke, Tami S.",61100,"Advancement"]
[5482,"Conn, Eric W.",20830,"Publications"]
[5486,"Orellana, Edward K.",40100,"General Operations"]
[5488,"Seanor, William K.",10700,"Inst For Legislative Action"]
[5489,"Thess, Ashley R.",20600,"Publications"]
[5491,"Bingenheimer, Lisa A.",10700,"Inst For Legislative Action"]
[5494,"Kirby, Tyler R.",60220,"Field Operations"]
[5495,"Wolfe, Jason L.",60218,"Field Operations"]
[5496,"Conger, Dennis R.",60223,"Field Operations"]
[5499,"Brown, Andrew P.",10700,"Inst For Legislative Action"]
[5501,"Walker, John F.",0,"Office of the Treasurer"]
[5505,"Chari, Viji L.",10300,"Office Of The Treasurer"]
[5510,"Adams, Ian A.",0,"Office of the Treasurer"]
[5513,"Ansah, Isaac K.",10300,"Office Of The Treasurer"]
[5514,"Klein, Alexandra L.",10700,"Inst For Legislative Action"]
[5515,"Greening, Jesse D.",10700,{"$f":"VLOOKUP(LEFT(C474,5)*1,Division,4,FALSE)","v":"Inst For Legislative Action"}]
[5516,"Cline Esq., Aoibheann",10700,"Inst For Legislative Action"]
[5517,"Churchill, Timothy D.",10700,"Inst For Legislative Action"]
[5518,"Huxley, Caitlin",10700,"Inst For Legislative Action"]
[5519,"Wojtowicz, Shane R.",0,"Office of the Treasurer"]
[5520,"Brown, Ivy R.",0,"Office of the Treasurer"]
[5521,"Flynn, Tylor M.",60217,"Field Operations"]
[5522,"Mallios, Joanna T.",10700,"Inst For Legislative Action"]
[5523,"DiSipio Jr., Michael A.",10210,"General Counsel"]
[5524,"Capalongan, Ronald C.",60231,"Field Operations"]
[5525,"Lucero, Izarius J.",0,"Office of the Treasurer"]
[5526,"Eisert, Leah M.",0,"Office of the Treasurer"]
[5527,"Maes, Abenecio",0,"Office of the Treasurer"]
[5528,"Garcia, Jesus M.",0,"Office of the Treasurer"]
[5529,"Johnson, Noah",0,"Office of the Treasurer"]
[5530,"Trujillo-San Roman, Nash M.",0,"Office of the Treasurer"]
[5531,"Swenson, Barrett J.",0,"Office of the Treasurer"]
[5532,"Clark, Reagan D.",0,"Office of the Treasurer"]
[5533,"Martinez, Brandon G.",0,"Office of the Treasurer"]
[5534,"Salazar, Justin P.",0,"Office of the Treasurer"]
[5535,"Alderette, Deacon T.",0,"Office of the Treasurer"]
[5536,"Davidson, Richard W.",0,"Office of the Treasurer"]
[5537,"Boyd, Kenneth A.",43100,"Competitive Shooting"]
[5538,"McIvor, Danial",0,"Office of the Treasurer"]
[5539,"Brandfas, Thea L.",0,"Office of the Treasurer"]
[5540,"Meier, Richard L.",0,"Office of the Treasurer"]
[5541,"Schnelle, Scott D.",0,"Office of the Treasurer"]
[5542,"Adams, Verna E.",0,"Office of the Treasurer"]
[5543,"Ogata, Jesse W.",0,"Office of the Treasurer"]
[5544,"Brown, Gregory S.",60210,"Field Operations"]
[5545,"Campbell, Thomas A.",60239,"Field Operations"]
[5546,"Quimby, Ian A.",60234,"Field Operations"]
[5547,"Tafoya, Ray L.",0,"Office of the Treasurer"]
[5548,"Anderson, Hadrian L.",0,"Office of the Treasurer"]
[5549,"Chavira Alvidrez, Devany",0,"Office of the Treasurer"]
[5550,"McCord, Justin L.",0,"Office of the Treasurer"]
[5554,"Anderson, Ryan H.",10300,"Office Of The Treasurer"]
[5555,"Kosters, Mary K.",60500,"Field Operations"]
[5556,"Camardo, Joseph A.",10220,"Executive Vice President"]
[5559,"Jackson, Stephen P.",10210,"General Counsel"]
[5561,"Westerdahl, Zachary R.",80680,{"$f":"VLOOKUP(LEFT(C514,5)*1,Division,4,FALSE)","v":"Membership"}]
[5562,"Nguyen, Simeon L.",60500,"Field Operations"]
[5563,"Penrod, Devan W.",0,"Office of the Treasurer"]
[5564,"Van Splinter, Grace A.",10700,"Inst For Legislative Action"]
[5565,"Sheard, Henry C.",30900,"Administrative Svcs"]
[5566,"Boatright, Grace E.",30900,"Administrative Svcs"]
[5567,"Quandahl, Kathy S.",20400,"Publications"]
[5568,"Cox, Cora F.",0,"Office of the Treasurer"]
[5569,"Sanchez, Katy B.",0,"Office of the Treasurer"]
[5570,"McIvor, Robert D.",0,"Office of the Treasurer"]
[5571,"Eshelman, Thomas E.",60245,"Field Operations"]
[5572,"Chu, John H.",10300,"Office Of The Treasurer"]
[5573,"Martin, Phillip T.",60242,"Field Operations"]
[5575,"Lewis, Thomas M.",0,"Office of the Treasurer"]
[5576,"Hadgu, Yonas M.",10300,"Office Of The Treasurer"]
[5577,"Ellison, Dena L.",61200,"Advancement"]
[5578,"Holz, Philip C.",10700,"Inst For Legislative Action"]
[5579,"Romero, Christine J.",40200,"NRA Shows & Exhibits"]
[5580,"Russo, Jason A.",60250,"Field Operations"]
[5581,"Cross, Nathanial G.",10700,"Inst For Legislative Action"]
[5582,"Creighton, Kevin J.",20830,"Publications"]
[5583,"Harlan, Nathan R.",10700,"Inst For Legislative Action"]
[5584,"Lucas, Stephen J.",43100,"Competitive Shooting"]
[5585,"Adams, Alicia C.",10700,"Inst For Legislative Action"]
[5586,"Daniels, Autumn M.",20400,"Publications"]
[5587,"Rasmussen, Todd F.",10700,"Inst For Legislative Action"]
[5588,"Nyce, Gregory M.",60204,"Field Operations"]
[5589,"Miller, Sean D.",10700,"Inst For Legislative Action"]
[5590,"Riggleman, Landon S.",10700,"Inst For Legislative Action"]
[5591,"Glowacki, Kenneth A.",20407,"Publications"]
[5592,"Lockwood, Peyton F.",10700,"Inst For Legislative Action"]
[5593,"Link, Kenia A.",10700,"Inst For Legislative Action"]
[5594,"Coats, Tyler D.",10700,"Inst For Legislative Action"]
[5596,"Lewis, Layne K.",60253,"Field Operations"]
[5597,"Dean, Eric J.",20140,"Publications"]
[5598,"Tilley, Austin P.",10700,"Inst For Legislative Action"]
[5599,"Pachimatla, Pandu",30305,"Information Services"]
[5600,"Symington Jr., James M.",30900,"Administrative Svcs"]
[5601,"Terreault, Stephen G.",30900,"Administrative Svcs"]
[5605,"Schenaker, Katherine R.",30900,"Administrative Svcs"]
[5606,"Pike, Randy E.",43100,"Competitive Shooting"]
[5607,"Carey, Jeffrey A.",30900,"Administrative Svcs"]
[5610,"Kimberling, Clay J.",10700,"Inst For Legislative Action"]
[5616,"Dudley, Larry R.",43100,{"$f":"VLOOKUP(LEFT(C557,5)*1,Division,4,FALSE)","v":"Competitive Shooting"}]
[5617,"Anderson, Larry E.",43100,"Competitive Shooting"]
[5618,"Cook, Casey J.",43100,"Competitive Shooting"]
[5619,"Sachs, Paige J.",10700,"Inst For Legislative Action"]
[5620,"Brandt, Bradley A.",10700,"Inst For Legislative Action"]
[5621,"Zhou, Edward Z.",80680,"Membership"]
[5623,"Farmer, Kelly A.",40130,"Rec Programs & Ranges"]
[5624,"Simons, Stacy L.",10700,"Inst For Legislative Action"]
[5626,"Zhang, Richard C.",30900,"Administrative Svcs"]
[5633,"Stanic, Kyler J.",60500,"Field Operations"]
[5634,"Slavik, Steven",60209,"Field Operations"]
[5635,"Schumacher, Shannon M.",10700,"Inst For Legislative Action"]
[5636,"Williams, Trevor B.",10700,"Inst For Legislative Action"]
[5637,"Escarcega, Angel R.",10700,"Inst For Legislative Action"]
[5638,"Fitzpatrick, Sean M.",10700,"Inst For Legislative Action"]
[5640,"Norwood, Carlton W.",10700,"Inst For Legislative Action"]
[5641,"Richmond, Joseph K.",30305,"Information Services"]
[5643,"Landerkin, James C.",30900,"Administrative Svcs"]
[5645,"Thornton, Michael A.",30900,"Administrative Svcs"]
[5646,"Cholewka, Stephen A.",30900,"Administrative Svcs"]
[5648,"Berg, Robert M.",60234,"Field Operations"]
[5649,"Borondo, Marisela G.",30306,"Information Services"]
[5651,"Parker Reyes, Jeydi L.",50100,"Financial Services"]
[5652,"Atassi, Julie J.",10300,"Office Of The Treasurer"]
[5654,"Bellavia, Erica M.",40200,"NRA Shows & Exhibits"]
[5655,"Maurer, Miranda L.",20400,"Publications"]
[5656,"Sams, Rachel E.",10700,"Inst For Legislative Action"]
[5657,"Davis IV, Justin E.",10700,"Inst For Legislative Action"]
[5658,"Grissom, Chad M.",60220,"Field Operations"]
[5659,"French, Jerry D.",0,"Office of the Treasurer"]
[5660,"Clements, Tina M.",10300,"Office Of The Treasurer"]
[5661,"Erkel, Erika C.",61100,"Advancement"]
[5662,"Hurwitz, John T.",80680,"Membership"]
[5663,"Clavell, Randall T.",60253,"Field Operations"]
[5664,"Lane, Gregory K.",30900,"Administrative Svcs"]
[5665,"Letourneau, David R.",30900,"Administrative Svcs"]
[5666,"Bingham, John T.",30900,"Administrative Svcs"]
[5667,"Schoenberger, Allison R.",61622,"Advancement"]
[5668,"Williams, Arthur Q.",10205,"Executive Vice President"]
[5669,"Schaeffer, Cory L.",60205,"Field Operations"]
[5670,"Wright, Caleb C.",60500,"Field Operations"]
[5671,"Erhardt, Erin M.",10700,"Inst For Legislative Action"]
[5672,"Stenger, Dieter",10700,"Inst For Legislative Action"]
[5673,"Myers, Cole B.",10700,"Inst For Legislative Action"]
[5674,"Lapham, Christopher M.",10205,"Executive Vice President"]
[5675,"Heimburger, Tyler A.",10210,"General Counsel"]
[5676,"Casselman, Christopher J.",10300,"Office Of The Treasurer"]
[5678,"Klein, Byron D.",60229,"Field Operations"]
[5694,"Reynolds, Cooper P.",10700,{"$f":"VLOOKUP(LEFT(C605,5)*1,Division,4,FALSE)","v":"Inst For Legislative Action"}]
[5695,"Lammel, Jody H.",60246,"Field Operations"]
[5696,null,0,"Office of the Treasurer"]
[5697,"Zandipour, Kian J.",30900,"Administrative Svcs"]
[5698,"Livingston, Connor H.",50100,"Financial Services"]
[5699,"Stocke, Jacob D.",20500,"Publications"]
[5700,"Lewis, Bryant",10210,"General Counsel"]
[5701,null,0,"Office of the Treasurer"]
[5702,"Smaltz, Katelyn M.",40930,"Law Enforcement"]
[5703,"Nash, Colin C.",80680,"Membership"]
[5704,"Sage, Shawn J.",60202,"Field Operations"]
[5705,"Trivett, Richard S.",30900,"Administrative Svcs"]
[5706,null,0,"Office of the Treasurer"]
[5707,null,0,"Office of the Treasurer"]
[5708,null,0,"Office of the Treasurer"]
[5709,"Gates, Kevin D.",10300,"Office Of The Treasurer"]
[5710,"Spence, Brandon P.",60245,"Field Operations"]
[5711,"Hoaglin, Riley S.",60500,"Field Operations"]
[5712,"McLennan, Amanda N.",60500,"Field Operations"]
[5713,"Tamayo, Oscar F.",10700,"Inst For Legislative Action"]
[5714,null,0,"Office of the Treasurer"]
[5715,"Timoll, Alejandra-Hope I.",10700,"Inst For Legislative Action"]
[5716,"McKee Esq., Taylor H.",10700,"Inst For Legislative Action"]
[5717,"Mensinger, Robert",10250,"Compliance"]
[5718,"Bradley, George W.",40930,"Law Enforcement"]
[5719,"Mulford, Richard J.",60210,"Field Operations"]
[5720,"Simpson, David W.",10210,"General Counsel"]
[5721,"Galito Jr., Jose C.",30900,"Administrative Svcs"]
[5722,"Lake, Raymond W.",30900,"Administrative Svcs"]
[5723,"Gessner, Eric L.",30900,"Administrative Svcs"]
[5724,"Jackson, Samuel S.",60223,"Field Operations"]
[5725,null,0,"Office of the Treasurer"]
[5726,null,0,"Office of the Treasurer"]
[5727,null,0,"Office of the Treasurer"]
[5728,null,0,"Office of the Treasurer"]
[5729,null,0,"Office of the Treasurer"]
[5730,null,0,"Office of the Treasurer"]
[5731,null,0,"Office of the Treasurer"]
[5732,null,0,"Office of the Treasurer"]
[5733,null,0,"Office of the Treasurer"]
[5734,null,0,"Office of the Treasurer"]
[5735,null,0,"Office of the Treasurer"]
[5736,null,0,"Office of the Treasurer"]
[5737,null,0,"Office of the Treasurer"]
[5738,null,0,"Office of the Treasurer"]
[5739,null,0,"Office of the Treasurer"]
[5740,null,0,"Office of the Treasurer"]
[5741,null,0,"Office of the Treasurer"]
[5742,null,0,"Office of the Treasurer"]
[5743,null,0,"Office of the Treasurer"]
[5744,null,0,"Office of the Treasurer"]
[5745,null,0,"Office of the Treasurer"]
[5746,null,0,"Office of the Treasurer"]
[5747,null,0,"Office of the Treasurer"]
[5748,null,0,"Office of the Treasurer"]
[5749,null,0,"Office of the Treasurer"]
[5750,null,0,"Office of the Treasurer"]
[5751,null,0,"Office of the Treasurer"]
[5752,null,0,"Office of the Treasurer"]
[5753,null,0,"Office of the Treasurer"]
[5754,null,0,"Office of the Treasurer"]
[5755,null,0,"Office of the Treasurer"]
[5756,null,0,"Office of the Treasurer"]
[5757,null,0,{"$f":"VLOOKUP(LEFT(C668,5)*1,Division,4,FALSE)","v":"Office of the Treasurer"}]
[5758,null,0,"Office of the Treasurer"]
[5759,null,0,"Office of the Treasurer"]
[5760,null,0,"Office of the Treasurer"]
[5761,null,0,"Office of the Treasurer"]
[5762,null,0,"Office of the Treasurer"]
[5763,null,0,"Office of the Treasurer"]
[5764,null,0,"Office of the Treasurer"]
[5765,null,0,{"$f":"VLOOKUP(LEFT(C676,5)*1,Division,4,FALSE)","v":"Office of the Treasurer"}]
[5766,null,0,"Office of the Treasurer"]
[5767,null,0,"Office of the Treasurer"]
[5768,null,0,"Office of the Treasurer"]
[5769,null,0,"Office of the Treasurer"]
[5770,null,0,"Office of the Treasurer"]
[5771,null,0,"Office of the Treasurer"]
[5772,null,0,"Office of the Treasurer"]
[5773,null,0,{"$f":"VLOOKUP(LEFT(C684,5)*1,Division,4,FALSE)","v":"Office of the Treasurer"}]
[5774,null,0,"Office of the Treasurer"]
[5775,null,0,"Office of the Treasurer"]
[5776,null,0,"Office of the Treasurer"]
[5777,null,0,"Office of the Treasurer"]
[5778,null,0,"Office of the Treasurer"]
[5779,null,0,"Office of the Treasurer"]
[5780,null,0,"Office of the Treasurer"]
[5781,null,0,"Office of the Treasurer"]
[5782,null,0,"Office of the Treasurer"]
[5783,null,0,"Office of the Treasurer"]
[5784,null,0,"Office of the Treasurer"]
[5785,null,0,"Office of the Treasurer"]
[5786,null,0,"Office of the Treasurer"]
[5787,null,0,"Office of the Treasurer"]
[5788,null,0,"Office of the Treasurer"]
[5789,null,0,"Office of the Treasurer"]
[5790,null,0,"Office of the Treasurer"]
[5791,null,0,"Office of the Treasurer"]
[5792,null,0,"Office of the Treasurer"]
[5793,null,0,"Office of the Treasurer"]
[5794,null,0,"Office of the Treasurer"]
[5795,null,0,"Office of the Treasurer"]
[5796,null,0,"Office of the Treasurer"]
[5797,null,0,"Office of the Treasurer"]
[5798,null,0,"Office of the Treasurer"]
[5799,null,0,"Office of the Treasurer"]
[5800,null,0,"Office of the Treasurer"]
[5801,null,0,"Office of the Treasurer"]
[5802,null,0,"Office of the Treasurer"]
[5803,null,0,"Office of the Treasurer"]
[5804,null,0,"Office of the Treasurer"]
[5805,null,0,"Office of the Treasurer"]
[5806,null,0,"Office of the Treasurer"]
[5807,null,0,"Office of the Treasurer"]
[5808,null,0,"Office of the Treasurer"]
[5809,null,0,"Office of the Treasurer"]
[5810,null,0,"Office of the Treasurer"]
[5811,null,0,"Office of the Treasurer"]
[5812,null,0,"Office of the Treasurer"]
[5813,null,0,"Office of the Treasurer"]
[5814,null,0,"Office of the Treasurer"]
[5815,null,0,"Office of the Treasurer"]
[5816,null,0,"Office of the Treasurer"]
[5817,null,0,"Office of the Treasurer"]
[5818,null,0,"Office of the Treasurer"]
[5819,null,0,"Office of the Treasurer"]
[5820,null,0,"Office of the Treasurer"]
[5821,null,0,"Office of the Treasurer"]
[5822,null,0,"Office of the Treasurer"]
[5823,null,0,"Office of the Treasurer"]
[5824,null,0,"Office of the Treasurer"]
[5825,null,0,"Office of the Treasurer"]
[5826,null,0,"Office of the Treasurer"]
[5827,null,0,"Office of the Treasurer"]
[5828,null,0,"Office of the Treasurer"]
[5829,null,0,"Office of the Treasurer"]
[5830,null,0,"Office of the Treasurer"]
[5831,null,0,"Office of the Treasurer"]
[5832,null,0,"Office of the Treasurer"]
[5833,null,0,"Office of the Treasurer"]
[5834,null,0,"Office of the Treasurer"]
[5835,null,0,"Office of the Treasurer"]
[5836,null,0,"Office of the Treasurer"]
[5837,null,0,{"$f":"VLOOKUP(LEFT(C748,5)*1,Division,4,FALSE)","v":"Office of the Treasurer"}]
[5838,null,0,"Office of the Treasurer"]
[5839,null,0,"Office of the Treasurer"]
[5840,null,0,"Office of the Treasurer"]
[5841,null,0,"Office of the Treasurer"]
[5842,null,0,"Office of the Treasurer"]
[5843,null,0,"Office of the Treasurer"]
[5844,null,0,"Office of the Treasurer"]
[5845,null,0,"Office of the Treasurer"]
[5846,null,0,"Office of the Treasurer"]
[5847,null,0,"Office of the Treasurer"]
[5848,null,0,"Office of the Treasurer"]
[5849,null,0,"Office of the Treasurer"]
[5850,null,0,"Office of the Treasurer"]
[5851,null,0,"Office of the Treasurer"]
[5852,null,0,"Office of the Treasurer"]
[5853,null,0,"Office of the Treasurer"]
[5854,null,0,"Office of the Treasurer"]
[5855,null,0,"Office of the Treasurer"]
[5856,null,0,"Office of the Treasurer"]
[5857,null,0,"Office of the Treasurer"]
[5858,null,0,"Office of the Treasurer"]
[5859,null,0,"Office of the Treasurer"]
[5860,null,0,"Office of the Treasurer"]
[5861,null,0,"Office of the Treasurer"]
[5862,null,0,"Office of the Treasurer"]
[5863,null,0,"Office of the Treasurer"]
[5864,null,0,"Office of the Treasurer"]
[5865,null,0,"Office of the Treasurer"]
[]
[]
[]
[]
[]
[null,null,null,null,null,"EDIT DEFINITION OF LABEL AFTER #810!!"]

{"sheet":"CC Table","index":3,"n_rows":210,"n_cols":4,"rows_kept":210,"cut":false,"hidden":true,"merged":[]}
["Cost Center","Cost Center Name","Division","Department"]
[0,"Whittington Center","Executive Offices","Office of the Treasurer"]
[100,"General Revenue","General Revenue","General Revenue"]
[10100,"Office of the President","Executive Offices","Office Of The President"]
[10200,"Executive Vice President","Executive Offices","Executive Vice President"]
[10205,"Security","Executive Offices","Executive Vice President"]
[10210,"Office of General Counsel","Executive Offices","General Counsel"]
[10220,"Public Affairs","Executive Offices","Executive Vice President"]
[10250,"Compliance","Executive Offices","Compliance"]
[10300,"Office of the Treasurer","Executive Offices","Office Of The Treasurer"]
[10310,"Purchasing","Executive Offices","Purchasing"]
[10400,"Administration","Executive Offices","Office Of The Secretary"]
[10410,"Director Elections","Executive Offices","Office Of The Secretary"]
[10600,"Annual Mtg-Board/Mbr Related","Executive Offices","Office Of The Secretary"]
[10601,"Fall Board","Executive Offices","Office Of The Secretary"]
[10605,"Winter Board","Executive Offices","Office Of The Secretary"]
[10650,"Standing & Special Committees","Executive Offices","Office Of The Secretary"]
[10690,"Other Committee Expenses","Executive Offices","Office Of The Secretary"]
[10700,"Institute for Legislative Action","Institute for Legislative Action","Inst For Legislative Action"]
[20100,"Administration","Publications","Publications"]
[20120,"Art Department","Publications","Publications"]
[20140,"Photography Department","Publications","Publications"]
[20200,"The American Rifleman","Publications","Publications"]
[20300,"The American Hunter","Publications","Publications"]
[20400,"Advertising/Production Operations","Publications","Publications"]
[20401,"Integrated Marketing","Publications","Publications"]
[20402,"Eastern Sales","Publications","Publications"]
[20403,"Northeast Sales","Publications","Publications"]
[20404,"Southeast Sales","Publications","Publications"]
[20405,"Eastern Direct Sales","Publications","Publications"]
[20406,"Western Region","Publications","Publications"]
[20407,"Southwest Sales","Publications","Publications"]
[20408,"Western Sales","Publications","Publications"]
[20409,"Western Direct Sales","Publications","Publications"]
[20410,"Sales Administration","Publications","Publications"]
[20500,"Digital Operations","Publications","Publications"]
[20600,"Women's Digital","Publications","Publications"]
[20700,"America's 1st Freedom","Publications","Publications"]
[20810,"NRA Family","Publications","Publications"]
[20820,"Shooting Sports USA","Publications","Publications"]
[20830,"Shooting Illustrated","Publications","Publications"]
[20900,"Hunters' Leadership Forum","Publications","Publications"]
[30200,"Human Resources","Human Resources","Human Resources"]
[30300,"IS Administration","Information Services","Information Services"]
[30301,"Security","Information Services","Information Services"]
[30302,"Computer Operations","Information Services","Information Services"]
[30305,"Software Development","Information Services","Information Services"]
[30306,"Marketing Database Management","Information Services","Information Services"]
[30307,"Emergency Management Plan","Information Services","Information Services"]
[30500,"Administration","General Operations","Administrative Svcs"]
[30510,"Fairfax Facilities","General Operations","Administrative Svcs"]
[30515,"Waples Row Facilities","General Operations","Administrative Svcs"]
[30530,"Mail Room","General Operations","Administrative Svcs"]
[30600,"Food Services","General Operations","Administrative Svcs"]
[30900,"NRA Range","General Operations","Administrative Svcs"]
[40000,"Foundation Grants","General Operations","General Operations"]
[40100,"GO Administration","General Operations","General Operations"]
[40125,"School Shield","General Operations","General Operations"]
[40130,"Community Outreach","General Operations","Rec Programs & Ranges"]
[40200,"NRA Shows - Admin","General Operations","NRA Shows & Exhibits"]
[40210,"Annual Meeting","General Operations","NRA Shows & Exhibits"]
[40220,"Great American Outdoor Show","General Operations","NRA Shows & Exhibits"]
[40225,"Exhibit Operations","General Operations","NRA Shows & Exhibits"]
[40230,"Catalog & Store Operations","General Operations","NRA Shows & Exhibits"]
[40500,"Sales - Program Materials","General Operations","Administrative Svcs"]
[40685,"National Firearms Museum","General Operations","NFM & Gun Collecting"]
[40700,"Community Engagement Administration","General Operations","Rec Programs & Ranges"]
[40710,"Range Services","General Operations","Rec Programs & Ranges"]
[40720,"Clubs & Associations","General Operations","Rec Programs & Ranges"]
[40730,"Hunter Services","General Operations","Rec Programs & Ranges"]
[40800,"E&T Administration","General Operations","Education & Training"]
[40810,"Youth Programs","General Operations","Education & Training"]
[40830,"Training Department","General Operations","Education & Training"]
[40900,"LEAD Administration","General Operations","Law Enforcement"]
[40902,"Conventions & Conferences","General Operations","Law Enforcement"]
[40903,"Public Relations","General Operations","Law Enforcement"]
[40905,"National Police Shooting Championships","General Operations","Law Enforcement"]
[40912,"Instructor Certifications","General Operations","Law Enforcement"]
[40920,"Police Competitions - Admin","General Operations","Law Enforcement"]
[40921,"Police - Other Tournaments","General Operations","Law Enforcement"]
[40922,"Tactical Police Competitions","General Operations","Law Enforcement"]
[40923,"Police Award Program","General Operations","Law Enforcement"]
[40930,"Law Enforcement Trng Admin","General Operations","Law Enforcement"]
[43100,"Comp Shooting Administration","General Operations","Competitive Shooting"]
[43110,"Tournament Resources - Admin","General Operations","Competitive Shooting"]
[43160,"(c)4 - Tournament Admin","General Operations","Competitive Shooting"]
[43300,"Silhouette  Admin","General Operations","Competitive Shooting"]
[43400,"Rifle Programs - Administration","General Operations","Competitive Shooting"]
[43500,"HPR - Admin","General Operations","Competitive Shooting"]
[43600,"College & School Prog - Admin","General Operations","Competitive Shooting"]
[43700,"Pistol & Support - Administration","General Operations","Competitive Shooting"]
[50100,"Admin & Account Operations","Financial Services","Financial Services"]
[50120,"Benefits & Payroll Taxes","Fixed Costs","Fixed Costs"]
[50130,"Fixed Costs","Fixed Costs","Fixed Costs"]
[50140,"Allocated Depreciation","Fixed Costs","Fixed Costs"]
[51100,"Tax Compliance","Tax Compliance","Tax Compliance"]
[60100,"FO Administration","Advancement","Field Operations"]
[60201,"Field Representative # 1","Advancement","Field Operations"]
[60202,"Field Representative # 2","Advancement","Field Operations"]
[60203,"Field Representative # 3","Advancement","Field Operations"]
[60204,"Field Representative # 4","Advancement","Field Operations"]
[60205,"Field Representative # 5","Advancement","Field Operations"]
[60206,"Field Representative # 6","Advancement","Field Operations"]
[60207,"Field Representative # 7","Advancement","Field Operations"]
[60208,"Field Representative # 8","Advancement","Field Operations"]
[60209,"Field Representative # 9","Advancement","Field Operations"]
[60210,"Field Representative # 10","Advancement","Field Operations"]
[60211,"Field Representative # 11","Advancement","Field Operations"]
[60212,"Field Representative # 12","Advancement","Field Operations"]
[60213,"Field Representative # 13","Advancement","Field Operations"]
[60214,"Field Representative # 14","Advancement","Field Operations"]
[60215,"Field Representative # 15","Advancement","Field Operations"]
[60216,"Field Representative # 16","Advancement","Field Operations"]
[60217,"Field Representative # 17","Advancement","Field Operations"]
[60218,"Field Representative # 18","Advancement","Field Operations"]
[60219,"Field Representative # 19","Advancement","Field Operations"]
[60220,"Field Representative # 20","Advancement","Field Operations"]
[60221,"Field Representative # 21","Advancement","Field Operations"]
[60222,"Field Representative # 22","Advancement","Field Operations"]
[60223,"Field Representative # 23","Advancement","Field Operations"]
[60224,"Field Representative # 24","Advancement","Field Operations"]
[60225,"Field Representative # 25","Advancement","Field Operations"]
[60226,"Field Representative # 26","Advancement","Field Operations"]
[60227,"Field Representative # 27","Advancement","Field Operations"]
[60228,"Field Representative # 28","Advancement","Field Operations"]
[60229,"Field Representative # 29","Advancement","Field Operations"]
[60230,"Field Representative # 30","Advancement","Field Operations"]
[60231,"Field Representative # 31","Advancement","Field Operations"]
[60232,"Field Representative # 32","Advancement","Field Operations"]
[60233,"Field Representative # 33","Advancement","Field Operations"]
[60234,"Field Representative # 34","Advancement","Field Operations"]
[60235,"Field Representative # 35","Advancement","Field Operations"]
[60236,"Field Representative # 36","Advancement","Field Operations"]
[60237,"Field Representative # 37","Advancement","Field Operations"]
[60238,"Field Representative # 38","Advancement","Field Operations"]
[60239,"Field Representative # 39","Advancement","Field Operations"]
[60240,"Field Representative # 40","Advancement","Field Operations"]
[60241,"Field Representative # 41","Advancement","Field Operations"]
[60242,"Field Representative # 42","Advancement","Field Operations"]
[60243,"Field Representative # 43","Advancement","Field Operations"]
[60244,"Field Representative # 44","Advancement","Field Operations"]
[60245,"Field Representative # 45","Advancement","Field Operations"]
[60246,"Field Representative # 46","Advancement","Field Operations"]
[60247,"Field Representative # 47","Advancement","Field Operations"]
[60248,"Field Representative # 48","Advancement","Field Operations"]
[60249,"Field Representative # 49","Advancement","Field Operations"]
[60250,"Field Representative # 50","Advancement","Field Operations"]
[60251,"Field Representative # 51","Advancement","Field Operations"]
[60252,"Field Representative # 52","Advancement","Field Operations"]
[60253,"Field Representative # 53","Advancement","Field Operations"]
[60270,"Central Regional Office","Advancement","Field Operations"]
[60275,"Eastern Regional Office","Advancement","Field Operations"]
[60280,"Midwest Regional Office","Advancement","Field Operations"]
[60285,"Southern Regional Office","Advancement","Field Operations"]
[60290,"Western Regional Office","Advancement","Field Operations"]
[60295,"Southwest Regional Office","Advancement","Field Operations"]
[60500,"Volunteer Fund Raising","Advancement","Field Operations"]
[60501,"Fund Raising/Foundation","Advancement","Field Operations"]
[60503,"Youth Education Summit","Advancement","Field Operations"]
[61000,"Funds from NRAF","Advancement","Advancement"]
[61100,"OOA - Administration","Advancement","Advancement"]
[61200,"Advancement Services","Advancement","Advancement"]
[61300,"Corporate Partnerships","Advancement","Advancement"]
[61400,"Planned Giving","Advancement","Advancement"]
[61421,"PG Officer - Area # 1","Advancement","Advancement"]
[61422,"PG Officer - Area # 2 ","Advancement","Advancement"]
[61423,"PG Officer - Area # 3","Advancement","Advancement"]
[61424,"PG Officer - Area # 4","Advancement","Advancement"]
[61500,"Women's Programs","Advancement","Advancement"]
[61600,"Strategic Giving","Advancement","Advancement"]
[61601,"Strategic Giving - Admin","Advancement","Advancement"]
[61607,"Whittington Center - Prog Office","Advancement","Advancement"]
[61621,"Advancement Officer Area # 1","Advancement","Advancement"]
[61622,"Advancement Officer Area # 2","Advancement","Advancement"]
[61623,"Advancement Officer Area # 3","Advancement","Advancement"]
[61624,"Advancement Officer Area # 4","Advancement","Advancement"]
[61625,"Advancement Officer Area # 5","Advancement","Advancement"]
[61626,"Advancement Officer Area # 6","Advancement","Advancement"]
[61627,"Advancement Officer Area # 7","Advancement","Advancement"]
[61628,"Advancement Officer Area # 8","Advancement","Advancement"]
[61629,"Advancement Officer Area # 9","Advancement","Advancement"]
[61630,"Advancement Officer Area # 10","Advancement","Advancement"]
[61631,"Advancement Officer Area # 11","Advancement","Advancement"]
[61632,"Advancement Officer Area # 12","Advancement","Advancement"]
[61633,"Advancement Officer Area # 13","Advancement","Advancement"]
[61634,"Advancement Officer Area # 14","Advancement","Advancement"]
[61700,"Advancement Communications","Advancement","Advancement"]
[61800,"Annual Meeting Expense","Advancement","Advancement"]
[72200,"Affinity & Royalty Programs","Sales & Affinity","Sales & Affinity"]
[72350,"License Product Royalties","Sales & Affinity","Sales & Affinity"]
[80600,"Membership Administration","Membership","Membership"]
[80620,"Operations","Membership","Membership"]
[80622,"Member Services - Phones","Membership","Membership"]
[80624,"Member Services - Digital","Membership","Membership"]
[80630,"Golden Eagles","Membership","Membership"]
[80651,"Promotion-PM-New Member","Membership","Membership"]
[80652,"Promotion-PM-Renewal Mbr","Membership","Membership"]
[80653,"Promotion-Membership-New Mbr","Membership","Membership"]
[80654,"Promotion-Membership-Ren Mbr","Membership","Membership"]
[80655,"Other Promotion-New Member","Membership","Membership"]
[80656,"Other Promotion-Ren Member","Membership","Membership"]
[80658,"Promotion-Telemarketing-New Mb","Membership","Membership"]
[80671,"Fulfillment Costs","Membership","Membership"]
[80675,"Fund Raising Direct Mail","Membership","Membership"]
[80676,"Fund Raising Telemarketing","Membership","Membership"]
[80680,"Shows & Events","Membership","Membership"]
[80690,"Recruiter Programs","Membership","Membership"]
[81100,"Member Operations Administration","Membership","Member Operation Svcs"]
[81300,"Operations","Membership","Member Operation Svcs"]
[82999,"Public Relations","Public Relations","Public Relations"]